bitfinex/quotes_BTCUSD_20250223
["timestamp","ask_amount","ask_price","bid_price","bid_amount"]
[1740328100444,0.32959058,95652.0,95651.0,0.15481861]
[1740328100660,0.32959058,95652.0,95651.0,0.15181861]
[1740328100868,0.32959058,95652.0,95651.0,0.14681861]
[1740328101249,0.32959058,95652.0,95651.0,0.15781861]
[1740328101424,0.32959058,95652.0,95651.0,0.15281861]
[1740328101800,0.32959058,95652.0,95651.0,0.15781861]
[1740328102010,0.0017004,95652.0,95651.0,0.23591861]
[1740328102209,0.0017004,95652.0,95651.0,0.28315854]
[1740328103371,0.32789018,95667.0,95652.0,0.01454085]
[1740328103572,0.32789018,95667.0,95666.0,0.10858267]
[1740328103573,0.32801672,95667.0,95666.0,0.10858267]
[1740328103747,0.32801672,95667.0,95666.0,0.18668267]
[1740328103950,0.00012654,95667.0,95666.0,0.19188713]
[1740328104149,0.00012654,95667.0,95666.0,0.19314142]
[1740328104352,0.00012654,95667.0,95666.0,0.19188713]
[1740328104679,0.00012654,95667.0,95666.0,0.19314131]
[1740328105043,0.00012654,95667.0,95666.0,0.252327]
[1740328105213,0.00012654,95667.0,95666.0,0.25289506]
[1740328105435,0.00012654,95667.0,95666.0,0.42389506]
[1740328105574,0.00012654,95667.0,95666.0,0.49389591]
[1740328105799,0.00012654,95667.0,95666.0,0.52651502]
[1740328106426,0.00012654,95667.0,95666.0,0.49389591]
[1740328106793,0.00012654,95667.0,95666.0,0.50940138]
[1740328107871,0.00182694,95667.0,95666.0,0.50940138]
[1740328109660,0.00182694,95667.0,95666.0,0.50240138]
[1740328110186,0.00182694,95667.0,95666.0,0.50940138]
[1740328110778,0.00182694,95667.0,95666.0,0.50240138]
[1740328111115,0.00182694,95667.0,95666.0,0.50940138]
[1740328112859,0.00182694,95667.0,95666.0,0.53074436]
[1740328114109,0.00182694,95667.0,95666.0,0.52292212]
[1740328115439,0.00182694,95667.0,95666.0,0.51768798]
[1740328117423,0.00182694,95667.0,95666.0,0.52551022]
[1740328118616,0.00182694,95667.0,95666.0,0.51768798]
[1740328122253,0.00182694,95667.0,95666.0,0.52292212]
[1740328123911,0.00182694,95667.0,95666.0,0.51768798]
[1740328125806,0.00182694,95667.0,95666.0,0.52551022]
[1740328135541,0.00182694,95667.0,95666.0,0.55809506]
[1740328136554,0.00182694,95667.0,95666.0,0.55482373]
[1740328139895,0.00182694,95667.0,95666.0,0.47672373]
[1740328141085,0.00182694,95667.0,95666.0,0.46890149]
[1740328142299,0.00182694,95667.0,95666.0,0.47714149]
[1740328144507,0.00182694,95667.0,95666.0,0.48498611]
[1740328167476,0.00182694,95667.0,95666.0,0.47674611]
[1740328167653,0.00182694,95667.0,95666.0,0.48490611]
[1740328169348,0.00182694,95667.0,95666.0,0.47706149]
[1740328174020,0.00182694,95667.0,95666.0,0.45706149]
[1740328174224,0.00182694,95667.0,95666.0,0.47706149]
[1740328174538,0.00182694,95667.0,95666.0,0.45706149]
[1740328178826,0.00182694,95667.0,95666.0,0.44890149]
[1740328179039,0.00182694,95667.0,95666.0,0.45706149]
[1740328188204,0.00182694,95667.0,95666.0,0.45706149]
[1740328188912,0.00182694,95667.0,95666.0,0.56006149]
[1740328189153,0.00182694,95667.0,95666.0,0.58006149]
[1740328192720,9.4e-07,95667.0,95666.0,0.58006149]
[1740328197230,9.4e-07,95667.0,95666.0,0.58789794]
[1740328201839,9.4e-07,95671.0,95670.0,0.165431]
[1740328202010,6.877e-05,95671.0,95670.0,1.50179178]
[1740328202213,6.877e-05,95671.0,95670.0,1.50053785]
[1740328203043,6.877e-05,95671.0,95670.0,1.50753785]
[1740328204105,6.877e-05,95671.0,95670.0,1.5153743]
[1740328204492,6.877e-05,95671.0,95670.0,1.5223743]
[1740328205405,3.7e-07,95680.0,95679.0,0.04]
[1740328205608,0.00043307,95680.0,95679.0,0.46519038]
[1740328206867,0.00043307,95680.0,95679.0,0.47302683]
[1740328207610,0.00043307,95680.0,95679.0,0.48002683]
[1740328207820,0.00043307,95680.0,95679.0,0.47302683]
[1740328208174,0.00043307,95680.0,95679.0,0.48702683]
[1740328208675,0.00043307,95680.0,95679.0,0.49514683]
[1740328209483,0.00043307,95680.0,95679.0,0.46702683]
[1740328209685,0.00043307,95680.0,95679.0,0.49514683]
[1740328213297,0.00043307,95680.0,95679.0,0.48814683]
[1740328213477,0.00043307,95680.0,95679.0,0.49514683]
[1740328213896,0.00043307,95680.0,95679.0,0.48814683]
[1740328214286,0.00043307,95680.0,95679.0,0.49514683]
[1740328214664,0.00043307,95680.0,95679.0,0.51592292]
[1740328217501,0.00043307,95680.0,95679.0,0.50129694]
[1740328217922,0.00043307,95680.0,95679.0,0.52129694]
[1740328218488,0.00043307,95680.0,95679.0,0.50129694]
[1740328218808,0.00043307,95680.0,95679.0,0.52129694]
[1740328220351,0.00043307,95680.0,95679.0,0.50129694]
[1740328220503,0.00043307,95680.0,95679.0,0.52129694]
[1740328224815,0.00043307,95680.0,95679.0,0.50456635]
[1740328225027,0.00043307,95680.0,95679.0,0.52626635]
[1740328228529,0.0793,95692.0,95691.0,0.125403]
[1740328228811,0.0793678,95692.0,95691.0,0.15798784]
[1740328229013,0.0793678,95692.0,95691.0,0.16346331]
[1740328229840,0.0793678,95692.0,95691.0,0.17129976]
[1740328230262,6.78e-05,95692.0,95691.0,0.17829976]
[1740328230668,6.78e-05,95692.0,95691.0,0.18529976]
[1740328231000,6.78e-05,95692.0,95691.0,0.19559516]
[1740328231603,6.78e-05,95692.0,95691.0,0.19886457]
[1740328234282,6.78e-05,95692.0,95691.0,0.22022822]
[1740328237032,6.78e-05,95692.0,95691.0,0.22545929]
[1740328237238,0.0776,95698.0,95697.0,0.125395]
[1740328237646,0.0776,95698.0,95697.0,0.13087041]
[1740328238496,0.0776,95698.0,95697.0,0.14570686]
[1740328239494,0.0776,95698.0,95697.0,0.15270686]
[1740328240094,0.0776,95698.0,95697.0,0.15597627]
[1740328240298,0.0776,95698.0,95697.0,0.18865317]
[1740328241437,0.0776,95698.0,95697.0,0.15597627]
[1740328244259,0.0776,95698.0,95697.0,0.17644995]
[1740328245663,0.0776,95698.0,95697.0,0.18168102]
[1740328249584,0.0776,95698.0,95697.0,0.17644995]
[1740328250277,0.07845,95698.0,95697.0,0.17644995]
[1740328254245,0.07845,95698.0,95697.0,0.05105495]
[1740328254366,0.203844,95698.0,95697.0,0.05105495]
[1740328254847,0.203844,95698.0,95697.0,0.04557954]
[1740328256780,0.21439549,95698.0,95697.0,0.03774309]
[1740328257528,0.21439549,95698.0,95697.0,0.03447368]
[1740328257979,0.203844,95698.0,95697.0,0.03447368]
[1740328258211,0.63558969,95698.0,95697.0,0.03447368]
[1740328262933,0.68528969,95698.0,95697.0,0.03447368]
[1740328263363,0.83528969,95698.0,95697.0,0.03447368]
[1740328264187,0.83528969,95698.0,95697.0,0.02747368]
[1740328264418,0.83528969,95698.0,95697.0,0.02847368]
[1740328264998,0.83528969,95698.0,95697.0,0.02747368]
[1740328265325,0.83528969,95698.0,95697.0,0.02847368]
[1740328265852,0.83528969,95698.0,95697.0,0.02747368]
[1740328266025,0.83528969,95698.0,95697.0,0.02847368]
[1740328267441,0.83528969,95698.0,95697.0,0.02747368]
[1740328267639,0.83528969,95698.0,95697.0,0.02047368]
[1740328267836,0.15,95697.0,95696.0,0.0016998]
[1740328268064,0.50914069,95697.0,95696.0,0.0016998]
[1740328269806,0.23374569,95697.0,95696.0,0.0016998]
[1740328270965,0.56384569,95697.0,95696.0,0.0016998]
[1740328271138,0.3301,95697.0,95696.0,0.0016998]
[1740328271306,0.3291,95697.0,95696.0,0.00633433]
[1740328271668,0.3291,95697.0,95696.0,0.00833433]
[1740328271878,0.3291,95697.0,95696.0,0.0056998]
[1740328272086,0.3291,95697.0,95696.0,0.0016998]
[1740328272521,0.3291,95697.0,95696.0,0.0046998]
[1740328272797,0.3291,95697.0,95696.0,0.01333433]
[1740328273643,0.32882309,95697.0,95696.0,0.01333433]
[1740328276508,0.00085,95698.0,95697.0,0.125395]
[1740328276707,0.00085,95698.0,95697.0,0.1309189]
[1740328277924,0.00085,95698.0,95697.0,0.1379189]
[1740328278805,0.00085,95698.0,95697.0,0.1349189]
[1740328279047,0.00085,95698.0,95697.0,0.1399189]
[1740328279256,0.00085,95698.0,95697.0,0.1359189]
[1740328279423,0.00085,95698.0,95697.0,0.1379189]
[1740328279754,0.00085,95698.0,95697.0,0.1411885]
[1740328280836,0.00085,95698.0,95697.0,0.1471885]
[1740328283625,0.00085,95698.0,95697.0,0.24613515]
[1740328285121,0.00085,95698.0,95697.0,0.29413515]
[1740328285568,0.00085,95698.0,95697.0,0.20042069]
[1740328285777,0.00085,95698.0,95697.0,0.20822926]
[1740328290698,0.00085,95698.0,95697.0,0.20222926]
[1740328291022,0.00085,95698.0,95697.0,0.35822926]
[1740328291224,0.00085,95698.0,95697.0,0.35122926]
[1740328291650,0.00085,95698.0,95697.0,0.35222926]
[1740328291853,0.00085,95698.0,95697.0,0.35922926]
[1740328294538,0.00085,95698.0,95697.0,0.37377011]
[1740328295644,0.00085,95698.0,95697.0,0.36677011]
[1740328295818,0.00085,95698.0,95697.0,0.35977011]
[1740328297078,0.00085,95698.0,95697.0,0.36677011]
[1740328297310,0.00085,95698.0,95697.0,0.37836889]
[1740328297500,0.0017006,95710.0,95709.0,0.12538]
[1740328297674,0.0017006,95710.0,95709.0,0.13338]
[1740328297915,0.0017006,95710.0,95709.0,0.1388293]
[1740328298955,0.0017006,95710.0,95709.0,0.1458293]
[1740328299408,0.0017006,95710.0,95709.0,0.1528293]
[1740328300151,0.0017006,95710.0,95709.0,0.16133109]
[1740328300488,0.0017006,95710.0,95709.0,0.16913966]
[1740328302239,0.0017006,95710.0,95709.0,0.19026558]
[1740328304028,0.0017006,95710.0,95709.0,0.18326558]
[1740328304637,0.0017006,95710.0,95709.0,0.17626558]
[1740328304856,0.0017006,95710.0,95709.0,0.18326558]
[1740328305066,0.0017006,95710.0,95709.0,0.19026558]
[1740328305596,0.0017006,95710.0,95709.0,0.18326558]
[1740328305750,0.0017006,95710.0,95709.0,0.19026558]
[1740328309674,0.0017006,95710.0,95709.0,0.20275929]
[1740328310081,0.0017006,95710.0,95709.0,0.19575929]
[1740328310583,0.0017006,95710.0,95709.0,0.20275929]
[1740328310785,0.0017006,95710.0,95709.0,0.19575929]
[1740328310980,0.0017006,95710.0,95709.0,0.18875929]
[1740328311180,0.0017006,95710.0,95709.0,0.19575929]
[1740328311390,0.0017006,95710.0,95709.0,0.20275929]
[1740328313783,0.32882309,95719.0,95718.0,0.125368]
[1740328314009,0.32882309,95719.0,95718.0,0.13080097]
[1740328314701,0.32882309,95719.0,95718.0,0.14139429]
[1740328314921,0.32882309,95719.0,95718.0,0.14839429]
[1740328315106,0.32882309,95719.0,95718.0,0.14480097]
[1740328315936,0.32882309,95719.0,95718.0,0.16326365]
[1740328316502,0.32882309,95719.0,95718.0,0.15260954]
[1740328316922,0.32882309,95719.0,95718.0,0.16111133]
[1740328319212,0.32882309,95719.0,95718.0,0.17360504]
[1740328320602,0.32882309,95719.0,95718.0,0.16510325]
[1740328320981,0.40672309,95719.0,95718.0,0.16510325]
[1740328321779,0.40672309,95719.0,95718.0,0.19468974]
[1740328322055,0.40672309,95719.0,95718.0,0.17438746]
[1740328322635,0.40672309,95719.0,95718.0,0.18221256]
[1740328323787,0.40672309,95719.0,95718.0,0.19473273]
[1740328324741,0.40672309,95719.0,95718.0,0.28846653]
[1740328325380,0.32882309,95719.0,95718.0,0.28846653]
[1740328325540,0.32882309,95719.0,95718.0,0.27594636]
[1740328326976,0.32882309,95719.0,95718.0,0.28846653]
[1740328328520,0.32882309,95719.0,95718.0,0.19473273]
[1740328330510,0.32882309,95719.0,95718.0,0.18073273]
[1740328330851,0.32882309,95719.0,95718.0,0.19473273]
[1740328333543,0.32882309,95719.0,95718.0,0.19934806]
[1740328333766,0.30528836,95719.0,95718.0,0.2319456]
[1740328334177,0.30528836,95719.0,95718.0,0.22733027]
[1740328334354,0.30613856,95719.0,95718.0,0.26644931]
[1740328334950,0.30613856,95719.0,95718.0,0.25944931]
[1740328335290,0.0008502,95719.0,95718.0,0.41644931]
[1740328335647,0.0008502,95719.0,95718.0,0.40244931]
[1740328335876,0.0008502,95719.0,95718.0,0.40944931]
[1740328336431,0.00090893,95719.0,95718.0,0.40244931]
[1740328336639,0.00090893,95719.0,95718.0,0.40944931]
[1740328337162,0.00090893,95719.0,95718.0,0.41644931]
[1740328337377,0.00090893,95719.0,95718.0,0.40944931]
[1740328337723,0.00090893,95719.0,95718.0,0.41644931]
[1740328339256,0.00090893,95719.0,95718.0,0.38385177]
[1740328339556,0.0017006,95730.0,95727.0,0.156695]
[1740328339972,0.0017006,95730.0,95727.0,0.16210884]
[1740328340761,0.0017006,95730.0,95727.0,0.16910884]
[1740328341119,0.0017006,95730.0,95727.0,0.1822144]
[1740328341922,0.0017006,95730.0,95727.0,0.1892144]
[1740328342130,0.0017006,95730.0,95727.0,0.24867871]
[1740328344657,0.0017006,95730.0,95727.0,0.24407205]
[1740328345907,0.0017006,95730.0,95727.0,0.26547824]
[1740328346696,0.0017006,95730.0,95727.0,0.25295807]
[1740328348352,0.0017006,95730.0,95727.0,0.26547824]
[1740328350709,0.0017006,95730.0,95727.0,0.25295807]
[1740328352002,0.0017006,95730.0,95727.0,0.26547824]
[1740328358148,0.0017006,95730.0,95727.0,0.2263592]
[1740328360814,0.0017006,95730.0,95727.0,0.0696642]
[1740328361028,0.2051932,95728.0,95727.0,0.0696642]
[1740328361696,0.2051932,95728.0,95727.0,0.06425036]
[1740328362044,0.2051932,95728.0,95727.0,0.05173019]
[1740328362590,0.2051932,95728.0,95727.0,0.03773019]
[1740328363766,0.2051932,95728.0,95727.0,0.03490509]
[1740328363962,0.2051932,95728.0,95727.0,0.04190509]
[1740328364176,0.30783889,95728.0,95727.0,0.03690509]
[1740328364601,0.30783889,95728.0,95727.0,0.04390509]
[1740328364802,0.30783889,95728.0,95727.0,0.038675]
[1740328365900,0.61312725,95728.0,95727.0,0.038675]
[1740328366098,0.69582725,95728.0,95727.0,0.038675]
[1740328366297,0.69582725,95728.0,95727.0,0.03540619]
[1740328379877,0.84582725,95728.0,95727.0,0.03540619]
[1740328380377,0.87725668,95728.0,95727.0,0.03540619]
[1740328380660,0.87725668,95728.0,95727.0,0.02840619]
[1740328380873,0.87725668,95728.0,95727.0,0.02140619]
[1740328381086,0.306705,95721.0,95720.0,3.9e-07]
[1740328381290,0.53895069,95721.0,95720.0,3.9e-07]
[1740328381491,0.57038012,95721.0,95720.0,3.9e-07]
[1740328381943,0.306708,95719.0,95718.0,5.9e-07]
[1740328382152,0.53895369,95719.0,95718.0,5.9e-07]
[1740328382354,0.59640297,95719.0,95718.0,5.9e-07]
[1740328383369,0.59640297,95719.0,95718.0,0.00100059]
[1740328383370,0.60040297,95719.0,95718.0,0.00100059]
[1740328384807,0.60240297,95719.0,95718.0,0.00100059]
[1740328386796,0.90769133,95719.0,95718.0,0.00100059]
[1740328386993,0.90769133,95719.0,95718.0,5.9e-07]
[1740328387895,0.88167148,95719.0,95718.0,5.9e-07]
[1740328388297,0.89621233,95719.0,95718.0,5.9e-07]
[1740328391375,0.89621233,95719.0,95710.0,0.0017004]
[1740328391376,0.306721,95711.0,95710.0,0.0017004]
[1740328391596,0.53996669,95711.0,95710.0,0.0017004]
[1740328391771,0.61485826,95711.0,95710.0,4e-07]
[1740328391992,0.59139612,95711.0,95710.0,4e-07]
[1740328392544,0.59639612,95711.0,95710.0,4e-07]
[1740328392746,0.90168448,95711.0,95710.0,4e-07]
[1740328394402,0.90568409,95711.0,95710.0,4e-07]
[1740328394809,0.90968409,95711.0,95710.0,4e-07]
[1740328395058,0.92569544,95711.0,95710.0,4e-07]
[1740328395330,0.92069544,95711.0,95710.0,4e-07]
[1740328395537,0.92569544,95711.0,95710.0,4e-07]
[1740328395892,0.91268409,95711.0,95710.0,4e-07]
[1740328399812,0.15,95699.0,95696.0,4e-07]
[1740328400023,0.49248969,95697.0,95696.0,4e-07]
[1740328400504,0.52391912,95697.0,95696.0,4e-07]
[1740328401177,0.82920748,95697.0,95696.0,4e-07]
[1740328401590,0.83220748,95697.0,95696.0,4e-07]
[1740328401801,0.82920748,95697.0,95696.0,4e-07]
[1740328402012,0.83520748,95697.0,95696.0,4e-07]
[1740328402986,0.83320748,95697.0,95696.0,4e-07]
[1740328403141,0.83520748,95697.0,95696.0,4e-07]
[1740328403673,0.83120748,95697.0,95696.0,4e-07]
[1740328403879,0.83420748,95697.0,95696.0,4e-07]
[1740328404978,0.83420748,95697.0,95696.0,0.02130654]
[1740328406143,0.83420748,95697.0,95696.0,0.01683454]
[1740328406339,0.30677,95681.0,95680.0,0.0017]
[1740328406499,0.71470405,95681.0,95680.0,0.0017]
[1740328407184,0.72509526,95681.0,95680.0,0.0017]
[1740328407594,0.72509526,95681.0,95680.0,0.00375873]
[1740328409369,0.72509526,95681.0,95680.0,0.00675873]
[1740328412052,0.73304048,95681.0,95680.0,0.00675873]
[1740328414626,0.73304048,95681.0,95680.0,0.02778477]
[1740328416814,0.83568617,95681.0,95680.0,0.00675873]
[1740328417216,0.73304048,95681.0,95680.0,0.00675873]
[1740328418606,0.73304048,95681.0,95680.0,0.00375873]
[1740328418821,0.73304048,95681.0,95680.0,0.00475873]
[1740328419000,0.73304048,95681.0,95680.0,0.00175873]
[1740328419201,0.73304048,95681.0,95680.0,0.00375873]
[1740328419403,0.76446991,95681.0,95680.0,0.00375873]
[1740328419606,0.9502156,95681.0,95680.0,0.00175873]
[1740328419823,0.84756991,95681.0,95680.0,0.00175873]
[1740328420022,0.84856991,95681.0,95680.0,0.00175873]
[1740328420770,0.69179991,95681.0,95679.0,7.3e-07]
[1740328421034,0.46084712,95680.0,95679.0,7.3e-07]
[1740328421249,0.84923548,95680.0,95679.0,7.3e-07]
[1740328422100,0.81780605,95680.0,95679.0,7.3e-07]
[1740328422465,0.82080605,95680.0,95679.0,7.3e-07]
[1740328423827,0.82580605,95680.0,95679.0,7.3e-07]
[1740328427108,0.90652474,95680.0,95679.0,7.3e-07]
[1740328427685,0.82580605,95680.0,95679.0,7.3e-07]
[1740328433057,0.82750705,95680.0,95679.0,7.3e-07]
[1740328438667,0.80750705,95680.0,95679.0,7.3e-07]
[1740328438878,0.82750705,95680.0,95679.0,7.3e-07]
[1740328441724,0.80750705,95680.0,95679.0,7.3e-07]
[1740328441944,0.82750705,95680.0,95679.0,7.3e-07]
[1740328449237,0.74440705,95680.0,95679.0,7.3e-07]
[1740328449437,0.72440705,95680.0,95679.0,7.3e-07]
[1740328449645,0.74440705,95680.0,95679.0,7.3e-07]
[1740328450614,0.72440705,95680.0,95679.0,7.3e-07]
[1740328450839,0.74440705,95680.0,95679.0,7.3e-07]
[1740328468578,0.73540705,95680.0,95679.0,7.3e-07]
[1740328478815,0.71540705,95680.0,95679.0,7.3e-07]
[1740328479404,0.56540705,95680.0,95679.0,7.3e-07]
[1740328479550,0.56540705,95680.0,95679.0,0.08000073]
[1740328479877,0.56540705,95680.0,95679.0,0.08523767]
[1740328480100,0.71540705,95680.0,95679.0,0.08523767]
[1740328480437,0.71540705,95680.0,95679.0,0.08000073]
[1740328480639,0.55740705,95680.0,95679.0,0.08000073]
[1740328480858,0.41463505,95680.0,95679.0,0.13463767]
[1740328481044,0.57140705,95680.0,95679.0,0.13763767]
[1740328481239,0.57140705,95680.0,95679.0,0.13240073]
[1740328482207,0.56640705,95680.0,95679.0,0.13240073]
[1740328482563,0.56640705,95680.0,95679.0,0.13440073]
[1740328482759,0.56640705,95680.0,95679.0,0.13963767]
[1740328483392,0.56640705,95680.0,95679.0,0.13440073]
[1740328483592,0.56640705,95680.0,95679.0,0.15490887]
[1740328495342,0.40963505,95680.0,95679.0,0.15490887]
[1740328495567,0.56640705,95680.0,95679.0,0.15490887]
[1740328495749,0.40963505,95680.0,95679.0,0.15490887]
[1740328495951,0.40963505,95680.0,95679.0,0.16025775]
[1740328503366,0.30698936,95680.0,95679.0,0.16025775]
[1740328503572,0.30698936,95680.0,95679.0,0.31703175]
[1740328504757,0.30698936,95680.0,95679.0,0.15825775]
[1740328504936,0.30698936,95680.0,95679.0,0.31503175]
[1740328505108,0.30698936,95680.0,95679.0,0.31703175]
[1740328508268,0.30698936,95680.0,95679.0,0.31403175]
[1740328508474,0.30698936,95680.0,95679.0,0.31203175]
[1740328508816,0.30698936,95680.0,95679.0,0.31703175]
[1740328508999,0.30698936,95680.0,95679.0,0.31503175]
[1740328509179,0.30698936,95680.0,95679.0,0.32103175]
[1740328509399,0.30698936,95680.0,95679.0,0.31803175]
[1740328509593,0.30798936,95680.0,95679.0,0.16825775]
[1740328509786,0.30798936,95680.0,95679.0,0.32503175]
[1740328510825,0.56740705,95680.0,95679.0,0.04212828]
[1740328511250,0.56740705,95680.0,95679.0,0.0367794]
[1740328512008,0.56640705,95680.0,95679.0,0.0297794]
[1740328512217,0.56740705,95680.0,95679.0,0.0357794]
[1740328512455,0.56740705,95680.0,95679.0,0.03250887]
[1740328513821,0.71740705,95680.0,95679.0,0.03250887]
[1740328514027,0.71740705,95680.0,95679.0,0.01200073]
[1740328514798,0.72544192,95680.0,95679.0,0.01200073]
[1740328515820,0.72544192,95680.0,95679.0,0.01800073]
[1740328516267,0.72444192,95680.0,95679.0,7.3e-07]
[1740328516440,0.72444192,95680.0,95679.0,0.00200073]
[1740328516642,0.72444192,95680.0,95679.0,0.00300073]
[1740328517879,0.80414192,95680.0,95679.0,0.00300073]
[1740328519386,0.80414192,95680.0,95679.0,0.00100073]
[1740328519589,0.80514192,95680.0,95679.0,0.00100073]
[1740328521707,0.80514192,95680.0,95679.0,7.3e-07]
[1740328521964,0.80714192,95680.0,95679.0,7.3e-07]
[1740328545969,0.72744192,95680.0,95679.0,7.3e-07]
[1740328550563,0.72616932,95680.0,95679.0,7.3e-07]
[1740328553022,0.72616932,95680.0,95679.0,0.02104762]
[1740328555345,0.72516932,95680.0,95679.0,0.02104762]
[1740328555962,0.72316932,95680.0,95679.0,0.02104762]
[1740328556368,0.72416932,95680.0,95679.0,0.02104762]
[1740328614749,0.72416932,95680.0,95679.0,0.02204762]
[1740328614945,0.72316932,95680.0,95679.0,0.02204762]
[1740328631130,0.72316932,95680.0,95679.0,0.02104762]
[1740328631919,0.72316932,95680.0,95679.0,0.02204762]
[1740328636887,0.72516932,95680.0,95679.0,0.02204762]
[1740328637313,0.72316932,95680.0,95679.0,0.02104762]
[1740328637539,0.72416932,95680.0,95679.0,0.02104762]
[1740328638158,0.72316932,95680.0,95679.0,0.02104762]
[1740328638679,0.72516932,95680.0,95679.0,0.02104762]
[1740328638973,0.72616932,95680.0,95679.0,0.02104762]
[1740328639849,0.72416932,95680.0,95679.0,0.02104762]
[1740328640548,0.72316932,95680.0,95679.0,0.02104762]
[1740328640749,0.72316932,95680.0,95679.0,0.02204762]
[1740328641253,0.72316932,95680.0,95679.0,0.02304762]
[1740328647124,0.71513445,95680.0,95679.0,0.02304762]
[1740328702299,0.71513445,95680.0,95679.0,0.00200073]
[1740328706778,0.71013445,95680.0,95679.0,0.00200073]
[1740328713404,0.69269445,95680.0,95679.0,0.00200073]
[1740328734764,0.69269445,95680.0,95679.0,0.02326274]
[1740328739194,0.69269445,95680.0,95679.0,0.02126274]
[1740328741188,0.69369445,95680.0,95679.0,0.02126274]
[1740328742960,0.7013801,95680.0,95679.0,0.02126274]
[1740328743868,0.7491801,95680.0,95679.0,0.02126274]
[1740328744114,0.86278622,95680.0,95679.0,0.02126274]
[1740328744626,0.86178622,95680.0,95679.0,0.02126274]
[1740328745134,0.86578622,95680.0,95679.0,0.02126274]
[1740328745436,0.86178622,95680.0,95679.0,0.02126274]
[1740328745780,0.86878622,95680.0,95679.0,0.02126274]
[1740328757089,0.8379801,95680.0,95679.0,0.02126274]
[1740328768471,0.8379801,95680.0,95679.0,7.4e-07]
[1740328768667,0.306793,95667.0,95666.0,0.0017002]
[1740328768881,0.40943869,95667.0,95666.0,0.0017002]
[1740328769892,0.69101445,95667.0,95666.0,0.0017002]
[1740328770668,0.69101445,95667.0,95666.0,0.0027002]
[1740328777186,0.69101445,95667.0,95666.0,0.02376454]
[1740328777353,0.69101445,95667.0,95666.0,0.0027002]
[1740328781463,0.69101445,95667.0,95666.0,0.02358996]
[1740328793845,0.68101445,95667.0,95666.0,0.02358996]
[1740328811205,0.68271465,95667.0,95666.0,0.02358996]
[1740328815773,0.68271465,95667.0,95666.0,0.03358996]
[1740328818140,0.68271465,95667.0,95666.0,0.0127002]
[1740328825409,0.68271465,95667.0,95666.0,0.03399806]
[1740328826448,0.68271465,95667.0,95666.0,0.0127002]
[1740328842323,0.65460958,95667.0,95666.0,0.0127002]
[1740328850475,0.65460958,95667.0,95666.0,0.0336326]
[1740328857309,0.53592165,95667.0,95666.0,0.0236326]
[1740328858123,0.69271465,95667.0,95666.0,0.0236326]
[1740328864293,0.38592165,95667.0,95666.0,0.0236326]
[1740328864495,0.38592165,95667.0,95666.0,0.1029326]
[1740328864692,0.38592165,95667.0,95666.0,0.1486326]
[1740328864900,0.38592165,95667.0,95666.0,0.15439114]
[1740328865567,0.54271465,95667.0,95666.0,0.16289647]
[1740328865767,0.38592165,95667.0,95666.0,0.16289647]
[1740328865972,0.54271465,95667.0,95666.0,0.18250109]
[1740328866380,0.54271465,95667.0,95666.0,0.190343]
[1740328870199,0.54271465,95667.0,95666.0,0.18510895]
[1740328872153,0.54271465,95667.0,95666.0,0.17935041]
[1740328877187,0.54271465,95667.0,95666.0,0.05435041]
[1740328887849,0.54271465,95667.0,95666.0,0.0465085]
[1740328888269,0.54271465,95667.0,95666.0,0.02690388]
[1740328888665,0.54271465,95667.0,95666.0,0.0236326]
[1740328891024,0.77511465,95667.0,95666.0,0.0236326]
[1740328891224,0.82281465,95667.0,95666.0,0.0236326]
[1740328893101,0.82281465,95667.0,95666.0,0.0226326]
[1740328893505,0.82381465,95667.0,95666.0,0.0226326]
[1740328893865,0.82281465,95667.0,95666.0,0.0226326]
[1740328894301,0.82381465,95667.0,95666.0,0.0226326]
[1740328901875,0.82381465,95667.0,95666.0,0.0017002]
[1740328906558,0.74141465,95667.0,95666.0,0.0017002]
[1740328910417,0.69371465,95667.0,95666.0,0.0017002]
[1740328915994,0.68871465,95667.0,95666.0,0.0017002]
[1740328916199,0.68871465,95667.0,95666.0,0.02128211]
[1740328924703,0.53871465,95667.0,95666.0,0.02128211]
[1740328926166,0.53871465,95667.0,95666.0,0.06048713]
[1740328926603,0.53871465,95667.0,95666.0,0.06899309]
[1740328928650,0.53871465,95667.0,95666.0,0.02978807]
[1740328929861,0.53871465,95667.0,95666.0,0.02455363]
[1740328946441,0.38192165,95667.0,95666.0,0.02455363]
[1740328946808,0.53871465,95667.0,95666.0,0.02455363]
[1740328947013,0.38192165,95667.0,95666.0,0.02455363]
[1740328947226,0.53871465,95667.0,95666.0,0.03058034]
[1740328947362,0.53771465,95667.0,95666.0,0.03058034]
[1740328947574,0.53771465,95667.0,95666.0,0.02455363]
[1740328947817,0.53771465,95667.0,95666.0,0.02555363]
[1740328948764,0.53771465,95667.0,95666.0,0.0578854]
[1740328948914,0.53771465,95667.0,95666.0,0.05461388]
[1740328956503,0.53771465,95667.0,95666.0,0.06245596]
[1740328959840,0.53771465,95667.0,95666.0,0.03112419]
[1740328965477,0.53771465,95667.0,95666.0,0.01154228]
[1740328965637,0.53771465,95667.0,95666.0,0.0037002]
[1740328996906,0.53771465,95667.0,95666.0,0.0233168]
[1740329006799,0.53771465,95667.0,95666.0,0.0037002]
[1740329013608,0.53771465,95667.0,95666.0,0.02331991]
[1740329023778,0.53771465,95667.0,95666.0,0.0037002]
[1740329026987,0.53771465,95667.0,95666.0,0.02331393]
[1740329033146,0.53771465,95667.0,95666.0,0.05469243]
[1740329035949,0.53771465,95667.0,95666.0,0.05987416]
[1740329036488,0.53771465,95667.0,95666.0,0.06771777]
[1740329037268,0.53771465,95667.0,95666.0,0.06671777]
[1740329037856,0.53771465,95667.0,95666.0,0.10592772]
[1740329038061,0.53771465,95667.0,95666.0,0.10792772]
[1740329038771,0.53771465,95667.0,95666.0,0.10692772]
[1740329039191,0.53771465,95667.0,95666.0,0.10792772]
[1740329043098,0.38092165,95667.0,95666.0,0.10792772]
[1740329044477,0.53771465,95667.0,95666.0,0.10792772]
[1740329044803,0.38092165,95667.0,95666.0,0.10792772]
[1740329045725,0.53771465,95667.0,95666.0,0.10792772]
[1740329046082,0.38092165,95667.0,95666.0,0.10792772]
[1740329048504,0.28327596,95667.0,95666.0,0.26472272]
[1740329048704,0.28327596,95667.0,95666.0,0.34692272]
[1740329049246,0.28327596,95667.0,95666.0,0.34492272]
[1740329050054,0.28327596,95667.0,95666.0,0.35742737]
[1740329050254,0.28327596,95667.0,95666.0,0.38875488]
[1740329050467,0.28327596,95667.0,95666.0,0.39275488]
[1740329050868,0.28327596,95667.0,95666.0,0.40527755]
[1740329052024,0.28327596,95667.0,95666.0,0.40004392]
[1740329052230,0.28327596,95667.0,95666.0,0.36871641]
[1740329070758,0.28327596,95667.0,95666.0,0.37395004]
[1740329071369,0.28327596,95667.0,95666.0,0.36495004]
[1740329071921,0.28327596,95667.0,95666.0,0.36995004]
[1740329072747,0.28327596,95667.0,95666.0,0.37395004]
[1740329072928,0.28327596,95667.0,95666.0,0.43304531]
[1740329073082,0.0017002,95667.0,95666.0,0.46258616]
[1740329073299,0.0017002,95667.0,95666.0,0.46858616]
[1740329073505,0.0017002,95667.0,95666.0,0.59123185]
[1740329074756,0.0017002,95667.0,95666.0,0.58123185]
[1740329074966,0.0017002,95667.0,95666.0,0.58823185]